fUST/lending_fUST_20240323
["ID","MTS","AMOUNT","RATE_DAILY","PERIOD"]
[320072421,1711135396914,-5169.56205362,0.00023912,2]
[320072422,1711135396935,-14842.88414814,0.00024154,2]
[320072423,1711135396955,-16538.55379824,0.00024154,7]
[320072424,1711135478885,-26790.0,0.00023093,2]
[320072426,1711135556503,-275.50508966,0.00022657,2]
[320072427,1711135556523,-1173.5558587,0.00022658,2]
[320072428,1711135556544,-219.93905164,0.00022865,2]
[320072433,1711135624457,-191.94768734,0.00022051,2]
[320072434,1711135624479,-205.13492374,0.00022052,2]
[320072435,1711135624500,-784.17862143,0.00022053,2]
[320072436,1711135624522,-310.88816105,0.00022054,2]
[320072437,1711135624543,-3506.11948002,0.0002265,2]
[320072438,1711135624564,-779.72077743,0.00022651,2]
[320072439,1711135624584,-160.75398886,0.00022652,2]
[320072440,1711135624608,-154.98450155,0.00022652,2]
[320072441,1711135624628,-180.09437435,0.00022652,2]
[320072442,1711135624650,-154.98450155,0.00022653,2]
[320072443,1711135624670,-1572.41746779,0.00022653,2]
[320072444,1711135624694,-210.16491797,0.00022653,2]
[320072445,1711135624714,-302.36214051,0.00022653,2]
[320072446,1711135624734,-156.30521551,0.00022654,2]
[320072447,1711135624753,-322.61827325,0.00022654,2]
[320072448,1711135624772,-239.29822108,0.00022654,2]
[320072449,1711135624792,-154.98450155,0.00022655,2]
[320072450,1711135624813,-3441.48938515,0.00022655,2]
[320072451,1711135624835,-154.98450155,0.00022656,2]
[320072452,1711135624856,-1477.41463995,0.00022656,2]
[320072453,1711135624876,-17.09693396,0.00022865,2]
[320072454,1711135624902,-15978.35706845,0.00022865,2]
[320072455,1711135624923,-688.05451893,0.00022865,2]
[320072456,1711135624943,-31.64519703,0.00022865,2]
[320072463,1711135691267,-191.94768734,0.00022634,2]
[320072464,1711135691290,-36973.05231266,0.00022635,2]
[320072544,1711135837907,-205.13492374,0.00021716,2]
[320072545,1711135837917,-191.94768734,0.00021717,2]
[320072546,1711135837927,-239.29822108,0.00021718,2]
[320072547,1711135837937,-210.16491797,0.00021718,2]
[320072548,1711135837947,-154.98450155,0.00021718,2]
[320072549,1711135837956,-156.30521551,0.00021718,2]
[320072550,1711135837965,-154.98450155,0.00021718,2]
[320072551,1711135837974,-1572.41746779,0.00021718,2]
[320072553,1711135837985,-302.36214051,0.00021718,2]
[320072554,1711135837994,-3506.11948002,0.00021718,2]
[320072555,1711135838003,-1300.61505009,0.00021719,2]
[320072556,1711135838012,-180.09437435,0.00021719,2]
[320072557,1711135838023,-1477.41463995,0.00021719,2]
[320072558,1711135838032,-263.30030311,0.0002172,7]
[320072560,1711135838041,-291.12745781,0.00021721,2]
[320072562,1711135838050,-3441.48938515,0.00021721,2]
[320072563,1711135838060,-8075.4479,0.00021722,2]
[320072565,1711135838069,-1376.478492,0.00021723,2]
[320072567,1711135838081,-183.327214,0.0002176,2]
[320072568,1711135838090,-755.49996842,0.00022232,2]
[320072569,1711135838100,-5169.56205362,0.00022409,2]
[320072571,1711135838110,-184.43799868,0.00022536,2]
[320072573,1711135838120,-300.0,0.00022629,2]
[320072575,1711135838130,-354.17378445,0.00022634,2]
[320072576,1711135838139,-154.98450155,0.00022635,2]
[320072578,1711135838148,-154.98450155,0.00022635,2]
[320072580,1711135838158,-15978.35706845,0.00022635,2]
[320072581,1711135838167,-1168.37959275,0.00022865,2]
[320072583,1711135838176,-687.48593211,0.00022865,2]
[320072584,1711135838186,-154.98450155,0.00023088,2]
[320072585,1711135838196,-309.70573076,0.00023089,2]
[320072586,1711135838205,-259.96800787,0.00023089,2]
[320072587,1711135838214,-310.79938002,0.00023089,2]
[320072588,1711135838224,-155.10258891,0.00023089,2]
[320072589,1711135838233,-170.98913988,0.00023089,2]
[320072590,1711135838243,-321.01755339,0.00023089,2]
[320072591,1711135838253,-155.72537662,0.00023089,2]
[320072592,1711135838262,-160.60933888,0.00023089,2]
[320072593,1711135838271,-372.98114206,0.00023089,2]
[320072594,1711135838280,-359.13247377,0.00023089,2]
[320072595,1711135838290,-500.0,0.00023089,2]
[320072596,1711135838299,-500.0,0.00023089,2]
[320072597,1711135838309,-500.0,0.00023089,2]
[320072598,1711135838318,-500.0,0.00023089,2]
[320072599,1711135838332,-227.54733836,0.00023089,2]
[320072600,1711135838342,-500.0,0.00023089,2]
[320072601,1711135838351,-571.84507236,0.00023089,2]
[320072602,1711135838361,-518.08717483,0.0002309,2]
[320072603,1711135838371,-47756.35197388,0.0002309,2]
[320072604,1711135838380,-275.10655882,0.00023091,2]
[320072605,1711135838390,-281.46635872,0.00023091,2]
[320072607,1711135838399,-309.8295945,0.00023091,2]
[320072609,1711135838409,-192.19720625,0.00023091,2]
[320072610,1711135838419,-1073.9320552,0.00023091,2]
[320072611,1711135838429,-309.75219824,0.00023091,2]
[320072612,1711135838438,-162.35925326,0.00023091,2]
[320072613,1711135838447,-3274.401257,0.00023091,2]
[320072614,1711135838456,-193.51235725,0.00023091,2]
[320072615,1711135838466,-309.53546455,0.00023091,2]
[320072616,1711135838475,-238.39719634,0.00023091,2]
[320072617,1711135838484,-641.97635516,0.00023091,2]
[320072618,1711135838493,-5079.88695154,0.00023092,2]
[320072619,1711135838502,-609.94652701,0.00023092,2]
[320072620,1711135838512,-3.5265818,0.00023093,2]
[320072621,1711135838522,-20186.69190224,0.00023093,2]
[320072622,1711135838532,-1363.60705581,0.00023314,2]
[320072624,1711135838541,-626.77499842,0.00023344,2]
[320072626,1711135838550,-185.2051148,0.00023414,2]
[320072628,1711135838559,-337.3610181,0.00023746,2]
[320072630,1711135838569,-1363.6070558,0.00024023,2]
[320072632,1711135838580,-274.39765104,0.00024152,2]
[320072634,1711135838590,-202.96515959,0.00024152,2]
[320072636,1711135838599,-251.48595237,0.00024152,2]
[320072637,1711135838608,-201.45886472,0.00024152,2]
[320072638,1711135838618,-270.37786055,0.00024152,2]
[320072639,1711135838628,-876.45467613,0.00024152,2]
[320072640,1711135838637,-1002.01344713,0.00024153,2]
[320072641,1711135838647,-11007.91686956,0.00024154,7]
[320072642,1711135838656,-2450.75700014,0.00024646,2]
[320072643,1711135838666,-4324.278832,0.00024647,2]
[320072644,1711135838676,-500.0,0.00024657,2]
[320072645,1711135838686,-451.63017508,0.00024657,2]
[320072646,1711135838695,-500.0,0.00024657,2]
[320072647,1711135838705,-617.28162156,0.00024731,2]
[320072648,1711135838715,-1363.6070558,0.00024732,2]
[320072649,1711135838725,-480.0,0.00024892,2]
[320072650,1711135838734,-155.298033,0.00024998,2]
[320072651,1711135838743,-470.70840451,0.00024998,2]
[320072652,1711135838753,-404.69308339,0.00024999,2]
[320072653,1711135838763,-267.65491813,0.00024999,2]
[320072654,1711135838772,-500.0,0.00024999,2]
[320072655,1711135838781,-1088.28,0.00024999,2]
[320072656,1711135838790,-23919.30196706,0.00025,5]
[320072657,1711135838800,-1016.55738819,0.00025,7]
[320072658,1711135838812,-500.0,0.00025205,2]
[320072659,1711135838824,-500.0,0.00025205,2]
[320072660,1711135838833,-1363.6070558,0.00025441,2]
[320072661,1711135838842,-1088.28,0.00025547,2]
[320072662,1711135838853,-240.35470573,0.00025701,2]
[320072663,1711135838863,-222.69768656,0.00025701,2]
[320072664,1711135838874,-2572.67,0.00025702,2]
[320072666,1711135838883,-1111.37,0.00025702,2]
[320072668,1711135838893,-3157.18,0.00025702,2]
[320072670,1711135838903,-1724.34,0.00025702,2]
[320072672,1711135838916,-500.0,0.00025702,2]
[320072674,1711135838926,-500.0,0.00025702,2]
[320072676,1711135838935,-656.94,0.00025702,2]
[320072678,1711135838946,-500.0,0.00025702,2]
[320072680,1711135838957,-16859.26,0.00025702,2]
[320072682,1711135838967,-2025.09,0.00025702,2]
[320072684,1711135838976,-500.0,0.00025702,2]
[320072686,1711135838986,-368.83574321,0.00025702,2]
[320072688,1711135838996,-1203.08,0.00025702,2]
[320072690,1711135839006,-500.0,0.00025702,2]
[320072692,1711135839016,-500.0,0.00025702,2]
[320072694,1711135839025,-526.83,0.00025702,2]
[320072695,1711135839034,-913.98,0.00025702,2]
[320072696,1711135839044,-500.0,0.00025702,2]
[320072697,1711135839059,-2848.11,0.00025702,2]
[320072698,1711135839068,-21979.68,0.00025702,2]
[320072699,1711135839079,-7558.34,0.00025702,2]
[320072700,1711135839088,-500.0,0.00025702,2]
[320072701,1711135839098,-1106.95,0.00025702,2]
[320072702,1711135839107,-500.0,0.00025702,2]
[320072704,1711135839117,-503.01453332,0.00025703,2]
[320072706,1711135839126,-500.0,0.00025703,2]
[320072708,1711135839136,-527.35,0.00025703,2]
[320072710,1711135839146,-500.0,0.00025703,2]
[320072712,1711135839155,-257.5723004,0.00025703,2]
[320072713,1711135839164,-500.0,0.00025703,2]
[320072715,1711135839174,-500.0,0.00025703,2]
[320072717,1711135839184,-500.0,0.00025703,2]
[320072718,1711135839193,-500.0,0.00025703,2]
[320072719,1711135839203,-500.0,0.00025703,2]
[320072720,1711135839212,-500.0,0.00025703,2]
[320072721,1711135839222,-1543.36,0.00025703,2]
[320072722,1711135839232,-500.0,0.00025703,2]
[320072723,1711135839241,-500.0,0.00025703,2]
[320072724,1711135839250,-500.0,0.00025703,2]
[320072725,1711135839259,-500.0,0.00025703,2]
[320072726,1711135839269,-500.0,0.00025703,2]
[320072727,1711135839278,-500.0,0.00025703,2]
[320072728,1711135839287,-500.0,0.00025703,2]
[320072729,1711135839297,-500.0,0.00025703,2]
[320072730,1711135839307,-1000.0,0.00025703,2]
[320072731,1711135839316,-609.08,0.00025703,2]
[320072732,1711135839330,-500.0,0.00025703,2]
[320072733,1711135839339,-500.0,0.00025703,2]
[320072734,1711135839349,-155.47423784,0.00025703,2]
[320072735,1711135839358,-500.0,0.00025703,2]
[320072736,1711135839368,-765.15,0.00025703,2]
[320072737,1711135839378,-500.0,0.00025703,2]
[320072738,1711135839389,-507.9,0.00025703,2]
[320072739,1711135839398,-500.0,0.00025703,2]
[320072740,1711135839408,-500.0,0.00025703,2]
[320072741,1711135839417,-500.0,0.00025703,2]
[320072742,1711135839428,-500.0,0.00025703,2]
[320072744,1711135839438,-500.0,0.00025703,2]
[320072745,1711135839447,-500.0,0.00025703,2]
[320072746,1711135839457,-500.0,0.00025703,2]
[320072747,1711135839466,-581.0,0.00025703,2]
[320072749,1711135839476,-500.0,0.00025703,2]
[320072750,1711135839486,-500.0,0.00025703,2]
[320072752,1711135839496,-500.0,0.00025703,2]
[320072753,1711135839505,-500.0,0.00025703,2]
[320072754,1711135839516,-500.0,0.00025703,2]
[320072755,1711135839526,-2553.7,0.00025703,2]
[320072756,1711135839535,-500.0,0.00025703,2]
[320072757,1711135839545,-500.0,0.00025703,2]
[320072758,1711135839555,-500.0,0.00025703,2]
[320072759,1711135839565,-500.0,0.00025703,2]
[320072760,1711135839574,-500.0,0.00025703,2]
[320072761,1711135839583,-500.0,0.00025703,2]
[320072762,1711135839593,-500.0,0.00025703,2]
[320072763,1711135839602,-500.0,0.00025703,2]
[320072764,1711135839611,-500.0,0.00025703,2]
[320072765,1711135839621,-500.0,0.00025703,2]
[320072766,1711135839631,-500.0,0.00025703,2]
[320072767,1711135839641,-500.0,0.00025703,2]
[320072768,1711135839650,-500.0,0.00025703,2]
[320072769,1711135839659,-500.0,0.00025703,2]
[320072770,1711135839669,-500.0,0.00025703,2]
[320072771,1711135839678,-500.0,0.00025703,2]
[320072772,1711135839687,-500.0,0.00025703,2]
[320072773,1711135839697,-500.0,0.00025703,2]
[320072774,1711135839706,-500.0,0.00025703,2]
[320072775,1711135839715,-627.12549703,0.00025703,2]
[320072776,1711135839724,-500.0,0.00025703,2]
[320072777,1711135839734,-500.0,0.00025703,2]
[320072778,1711135839743,-500.0,0.00025703,2]
[320072779,1711135839752,-500.0,0.00025703,2]
[320072780,1711135839761,-500.0,0.00025703,2]
[320072781,1711135839771,-500.0,0.00025703,2]
[320072782,1711135839781,-538.46,0.00025703,2]
[320072783,1711135839790,-500.0,0.00025703,2]
[320072784,1711135839800,-500.0,0.00025703,2]
[320072785,1711135839809,-298.13990406,0.00025703,2]
[320072786,1711135839818,-500.0,0.00025703,2]
[320072787,1711135839829,-500.0,0.00025703,2]
[320072788,1711135839839,-500.0,0.00025703,2]
[320072789,1711135839850,-500.0,0.00025703,2]
[320072790,1711135839860,-500.0,0.00025703,2]
[320072791,1711135839869,-1753.17,0.00025703,2]
[320072792,1711135839879,-500.0,0.00025703,2]
[320072793,1711135839888,-1424.75,0.00025703,2]
[320072794,1711135839898,-1628.25,0.00025703,2]
[320072795,1711135839909,-1211.71,0.00025703,2]
[320072796,1711135839919,-500.0,0.00025703,2]
[320072797,1711135839928,-500.0,0.00025703,2]
[320072798,1711135839937,-500.0,0.00025703,2]
[320072799,1711135839948,-626.97051343,0.00025703,2]
[320072800,1711135839957,-500.0,0.00025703,2]
[320072801,1711135839967,-500.0,0.00025703,2]
[320072802,1711135839976,-500.0,0.00025703,2]
[320072803,1711135839986,-500.0,0.00025703,2]
[320072804,1711135839995,-500.0,0.00025703,2]
[320072805,1711135840004,-500.0,0.00025703,2]
[320072806,1711135840013,-500.0,0.00025703,2]
[320072807,1711135840023,-500.0,0.00025703,2]
[320072808,1711135840032,-309.85910611,0.00025703,2]
[320072809,1711135840042,-503.0735052,0.00025703,2]
[320072810,1711135840051,-500.0,0.00025703,2]
[320072811,1711135840073,-500.0,0.00025703,2]
[320072813,1711135840085,-500.0,0.00025703,2]
[320072815,1711135840095,-17378.15,0.00025703,2]
[320072817,1711135840105,-500.0,0.00025703,2]
[320072818,1711135840115,-500.0,0.00025703,2]
[320072819,1711135840125,-500.0,0.00025703,2]
[320072821,1711135840134,-500.0,0.00025703,2]
[320072823,1711135840144,-1805.75,0.00025703,2]
[320072824,1711135840154,-500.0,0.00025703,2]
[320072826,1711135840164,-4030.89,0.00025703,2]
[320072827,1711135840175,-500.0,0.00025703,2]
[320072828,1711135840184,-500.0,0.00025703,2]
[320072829,1711135840195,-500.0,0.00025703,2]
[320072830,1711135840204,-500.0,0.00025703,2]
[320072831,1711135840215,-751.28,0.00025703,2]
[320072832,1711135840226,-500.0,0.00025703,2]
[320072833,1711135840236,-500.0,0.00025703,2]
[320072834,1711135840246,-500.0,0.00025703,2]
[320072835,1711135840255,-500.0,0.00025703,2]
[320072836,1711135840265,-500.0,0.00025703,2]
[320072837,1711135840275,-570.85928019,0.00025703,2]
[320072838,1711135840285,-500.0,0.00025703,2]
[320072840,1711135840294,-3674.06,0.00025703,2]
[320072841,1711135840304,-500.0,0.00025703,2]
[320072842,1711135840314,-500.0,0.00025703,2]
[320072843,1711135840326,-500.0,0.00025703,2]
[320072844,1711135840335,-500.0,0.00025703,2]
[320072846,1711135840344,-500.0,0.00025703,2]
[320072847,1711135840354,-500.0,0.00025703,2]
[320072849,1711135840363,-1450.6,0.00025703,2]
[320072851,1711135840373,-500.0,0.00025703,2]
[320072852,1711135840382,-500.0,0.00025703,2]
[320072854,1711135840392,-500.0,0.00025703,2]
[320072856,1711135840402,-25804.52,0.00025703,2]
[320072857,1711135840413,-500.0,0.00025703,2]
[320072859,1711135840423,-930.89,0.00025703,2]
[320072861,1711135840433,-501.85256439,0.00025703,2]
[320072863,1711135840443,-500.0,0.00025703,2]
[320072864,1711135840453,-500.0,0.00025703,2]
[320072865,1711135840462,-500.0,0.00025703,2]
[320072866,1711135840472,-500.0,0.00025704,2]
[320072867,1711135840482,-1369.55,0.00025704,2]
[320072868,1711135840492,-500.0,0.00025704,2]
[320072869,1711135840502,-500.0,0.00025704,2]
[320072870,1711135840512,-500.0,0.00025704,2]
[320072871,1711135840521,-500.0,0.00025704,2]
[320072873,1711135840531,-500.0,0.00025704,2]
[320072875,1711135840542,-500.0,0.00025704,2]
[320072877,1711135840552,-500.0,0.00025704,2]
[320072878,1711135840562,-500.0,0.00025704,2]
[320072879,1711135840571,-500.0,0.00025704,2]
[320072880,1711135840584,-500.0,0.00025704,2]
[320072881,1711135840593,-500.0,0.00025704,2]
[320072882,1711135840603,-370.02171051,0.00025704,2]
[320072884,1711135840612,-500.0,0.00025704,2]
[320072886,1711135840622,-500.0,0.00025704,2]
[320072887,1711135840631,-500.0,0.00025704,2]
[320072888,1711135840640,-427.49478328,0.00025704,2]
[320072889,1711135840649,-500.0,0.00025704,2]
[320072890,1711135840659,-500.0,0.00025704,2]
[320072891,1711135840669,-500.0,0.00025704,2]
[320072892,1711135840679,-500.0,0.00025704,2]
[320072893,1711135840689,-500.0,0.00025704,2]
[320072894,1711135840699,-500.0,0.00025704,2]
[320072895,1711135840708,-500.0,0.00025704,2]
[320072896,1711135840719,-500.0,0.00025704,2]
[320072897,1711135840729,-500.0,0.00025704,2]
[320072898,1711135840739,-500.0,0.00025704,2]
[320072899,1711135840749,-500.0,0.00025704,2]
[320072900,1711135840758,-500.0,0.00025704,2]
[320072901,1711135840769,-500.0,0.00025704,2]
[320072902,1711135840781,-500.0,0.00025704,2]
[320072903,1711135840791,-500.0,0.00025704,2]
[320072904,1711135840801,-500.0,0.00025704,2]
[320072905,1711135840810,-657.12,0.00025704,2]
[320072906,1711135840820,-500.0,0.00025704,2]
[320072907,1711135840831,-744.47,0.00025704,2]
[320072908,1711135840840,-500.0,0.00025704,2]
[320072909,1711135840851,-1639.22,0.00025704,2]
[320072910,1711135840860,-500.0,0.00025704,2]
[320072911,1711135840870,-500.0,0.00025704,2]
[320072912,1711135840880,-500.0,0.00025704,2]
[320072913,1711135840891,-500.0,0.00025704,2]
[320072914,1711135840903,-500.0,0.00025704,2]
[320072915,1711135840915,-763.05,0.00025704,2]
[320072916,1711135840925,-500.0,0.00025704,2]
[320072917,1711135840936,-500.0,0.00025704,2]
[320072918,1711135840946,-500.0,0.00025704,2]
[320072919,1711135840957,-500.0,0.00025704,2]
[320072920,1711135841114,-1133.1,0.00025704,2]
[320072921,1711135841124,-1119.21,0.00025704,2]
[320072922,1711135841134,-500.0,0.00025704,2]
[320072923,1711135841143,-500.0,0.00025704,2]
[320072924,1711135841152,-500.0,0.00025704,2]
[320072925,1711135841161,-500.0,0.00025704,2]
[320072926,1711135841171,-500.0,0.00025704,2]
[320072927,1711135841180,-500.0,0.00025704,2]
[320072928,1711135841191,-188.02131333,0.00025704,2]
[320072929,1711135841201,-500.0,0.00025704,2]
[320072930,1711135841211,-500.0,0.00025704,2]
[320072931,1711135841220,-500.0,0.00025704,2]
[320072932,1711135841229,-500.0,0.00025704,2]
[320072933,1711135841238,-500.0,0.00025704,2]
[320072934,1711135841248,-500.0,0.00025704,2]
[320072935,1711135841257,-500.0,0.00025704,2]
[320072936,1711135841266,-500.0,0.00025704,2]
[320072937,1711135841276,-500.0,0.00025704,2]
[320072938,1711135841287,-500.0,0.00025704,2]
[320072939,1711135841297,-500.0,0.00025704,2]
[320072940,1711135841307,-500.0,0.00025704,2]
[320072941,1711135841316,-209.97294759,0.00025704,2]
[320072942,1711135841327,-500.0,0.00025704,2]
[320072943,1711135841336,-500.0,0.00025704,2]
[320072944,1711135841346,-500.0,0.00025704,2]
[320072945,1711135841355,-500.0,0.00025704,2]
[320072946,1711135841365,-500.0,0.00025704,2]
[320072947,1711135841374,-500.43985307,0.00025704,2]
[320072948,1711135841383,-500.0,0.00025704,2]
[320072949,1711135841392,-508.22981875,0.00025704,2]
[320072950,1711135841402,-500.0,0.00025704,2]
[320072951,1711135841411,-500.0,0.00025704,2]
[320072952,1711135841421,-641.69283751,0.00025704,2]
[320072953,1711135841430,-221.21683314,0.00025704,2]
[320072954,1711135841439,-500.0,0.00025704,2]
[320072955,1711135841448,-500.0,0.00025704,2]
[320072956,1711135841457,-500.0,0.00025704,2]
[320072957,1711135841467,-500.0,0.00025704,2]
[320072958,1711135841476,-500.0,0.00025704,2]
[320072959,1711135841486,-500.0,0.00025704,2]
[320072960,1711135841495,-500.0,0.00025704,2]
[320072961,1711135841506,-500.0,0.00025704,2]
[320072962,1711135841515,-500.0,0.00025704,2]
[320072963,1711135841525,-500.0,0.00025704,2]
[320072964,1711135841535,-500.0,0.00025704,2]
[320072965,1711135841545,-166.34391731,0.00025704,2]
[320072966,1711135841554,-500.0,0.00025704,2]
[320072967,1711135841564,-500.37354689,0.00025704,2]
[320072968,1711135841575,-500.0,0.00025704,2]
[320072969,1711135841584,-500.0,0.00025704,2]
[320072970,1711135841593,-500.0,0.00025704,2]
[320072971,1711135841602,-500.0,0.00025705,2]
[320072972,1711135841612,-151.79793318,0.00025715,2]
[320072973,1711135841623,-500.0,0.00025758,2]
[320072974,1711135841632,-500.0,0.00025758,2]
[320072975,1711135841641,-500.0,0.00025758,2]
[320072976,1711135841652,-151.80276999,0.00025765,2]
[320072977,1711135841661,-151.80276999,0.00025765,2]
[320072978,1711135841670,-1088.28,0.00026095,2]
[320072979,1711135841679,-1363.6070558,0.0002615,2]
[320072980,1711135841689,-2031.31496889,0.0002615,2]
[320072981,1711135841698,-256248.97308643,0.00026151,2]
[320072982,1711135841708,-2572.67,0.0002625,2]
[320072983,1711135841718,-1111.37,0.0002625,2]
[320072984,1711135841729,-3157.18,0.0002625,2]
[320072985,1711135841738,-1724.34,0.0002625,2]
[320072986,1711135841748,-500.0,0.0002625,2]
[320072987,1711135841757,-656.94,0.0002625,2]
[320072988,1711135841767,-500.0,0.0002625,2]
[320072989,1711135841777,-16859.26,0.0002625,2]
[320072990,1711135841787,-2025.09,0.0002625,2]
[320072991,1711135841797,-500.0,0.0002625,2]
[320072992,1711135841806,-1203.08,0.0002625,2]
[320072993,1711135841816,-500.0,0.0002625,2]
[320072994,1711135841826,-526.83,0.0002625,2]
[320072995,1711135841835,-913.98,0.0002625,2]
[320072996,1711135841845,-2848.11,0.0002625,2]
[320072997,1711135841854,-21979.68,0.0002625,2]
[320072998,1711135841863,-7558.34,0.0002625,2]
[320072999,1711135841872,-500.0,0.0002625,2]
[320073000,1711135841882,-1106.95,0.0002625,2]
[320073001,1711135841896,-405.92032026,0.0002625,2]
[320073002,1711135841907,-527.35,0.00026251,2]
[320073003,1711135841916,-501.25867529,0.00026251,2]
[320073004,1711135841925,-500.0,0.00026251,2]
[320073005,1711135841934,-500.0,0.00026251,2]
[320073006,1711135841945,-500.0,0.00026251,2]
[320073007,1711135841955,-500.0,0.00026251,2]
[320073008,1711135841964,-500.0,0.00026251,2]
[320073009,1711135841974,-1543.36,0.00026251,2]
[320073010,1711135841985,-500.0,0.00026251,2]
[320073011,1711135841995,-493.45466401,0.00026251,2]
[320073012,1711135842004,-500.0,0.00026251,2]
[320073013,1711135842014,-500.0,0.00026251,2]
[320073014,1711135842023,-353.12306953,0.00026251,2]
[320073015,1711135842033,-609.08,0.00026251,2]
[320073016,1711135842042,-500.0,0.00026251,2]
[320073017,1711135842051,-765.15,0.00026251,2]
[320073018,1711135842060,-500.0,0.00026251,2]
[320073019,1711135842070,-507.9,0.00026251,2]
[320073020,1711135842080,-500.0,0.00026251,2]
[320073021,1711135842089,-500.0,0.00026251,2]
[320073022,1711135842098,-500.0,0.00026251,2]
[320073023,1711135842107,-390.72477065,0.00026251,2]
[320073024,1711135842117,-581.0,0.00026251,2]
[320073025,1711135842126,-500.0,0.00026251,2]
[320073026,1711135842136,-500.0,0.00026251,2]
[320073027,1711135842145,-500.0,0.00026251,2]
[320073028,1711135842156,-500.0,0.00026251,2]
[320073029,1711135842165,-2553.7,0.00026251,2]
[320073030,1711135842175,-500.0,0.00026251,2]
[320073031,1711135842184,-500.0,0.00026251,2]
[320073032,1711135842193,-500.0,0.00026251,2]
[320073033,1711135842202,-500.0,0.00026251,2]
[320073034,1711135842212,-500.0,0.00026251,2]
[320073035,1711135842221,-500.0,0.00026251,2]
[320073036,1711135842230,-500.0,0.00026251,2]
[320073037,1711135842250,-500.0,0.00026251,2]
[320073038,1711135842262,-500.0,0.00026251,2]
[320073039,1711135842273,-500.0,0.00026251,2]
[320073040,1711135842283,-500.0,0.00026251,2]
[320073041,1711135842293,-500.0,0.00026251,2]
[320073042,1711135842303,-500.0,0.00026251,2]
[320073043,1711135842313,-538.46,0.00026251,2]
[320073044,1711135842323,-500.0,0.00026251,2]
[320073045,1711135842335,-500.0,0.00026251,2]
[320073046,1711135842346,-500.0,0.00026251,2]
[320073047,1711135842356,-500.0,0.00026251,2]
[320073048,1711135842366,-1753.17,0.00026251,2]
[320073050,1711135842376,-500.0,0.00026251,2]
[320073052,1711135842386,-1424.75,0.00026251,2]
[320073053,1711135842396,-1628.25,0.00026251,2]
[320073054,1711135842406,-1211.71,0.00026251,2]
[320073055,1711135842416,-500.0,0.00026251,2]
[320073056,1711135842425,-500.0,0.00026251,2]
[320073058,1711135842435,-500.0,0.00026251,2]
[320073060,1711135842445,-500.0,0.00026251,2]
[320073062,1711135842455,-500.0,0.00026251,2]
[320073064,1711135842464,-500.0,0.00026251,2]
[320073066,1711135842474,-500.0,0.00026251,2]
[320073068,1711135842483,-17378.15,0.00026251,2]
[320073070,1711135842494,-500.0,0.00026251,2]
[320073071,1711135842503,-1805.75,0.00026251,2]
[320073072,1711135842513,-4030.89,0.00026251,2]
[320073073,1711135842523,-500.0,0.00026251,2]
[320073074,1711135842533,-500.0,0.00026251,2]
[320073075,1711135842543,-500.0,0.00026251,2]
[320073077,1711135842553,-751.28,0.00026251,2]
[320073079,1711135842563,-500.0,0.00026251,2]
[320073080,1711135842572,-500.0,0.00026251,2]
[320073081,1711135842583,-500.0,0.00026251,2]
[320073082,1711135842592,-3674.06,0.00026251,2]
[320073083,1711135842602,-500.0,0.00026251,2]
[320073084,1711135842612,-500.0,0.00026251,2]
[320073086,1711135842622,-500.0,0.00026251,2]
[320073088,1711135842632,-500.0,0.00026251,2]